[Event "Late-Titled-Tuesday-Blitz-June-04-2024"]
[Site "Chess.com"]
[Date "2024.06.04"]
[Round "5"]
[White "Laico"]
[Black "ChempionBg"]
[Result "1-0"]
[WhiteElo "2410"]
[BlackElo "2237"]
[TimeControl "180+1"]
[EndTime "14:53:38 PDT"]
[Termination "Laico won by resignation"]

1. e4 {[%clk 0:00:55.4]} 1... c5 {[%clk 0:02:42.1]} 2. Nc3 {[%clk 0:00:55]} 2...
Nc6 {[%clk 0:02:40.2]} 3. f4 {[%clk 0:00:55.9]} 3... g6 {[%clk 0:02:39.3]} 4.
Nf3 {[%clk 0:00:56.8]} 4... Bg7 {[%clk 0:02:39.7]} 5. Bb5 {[%clk 0:00:57.5]}
5... Nd4 {[%clk 0:02:37.8]} 6. O-O {[%clk 0:00:58.2]} 6... Nxb5 {[%clk
0:02:33.3]} 7. Nxb5 {[%clk 0:00:59.1]} 7... a6 {[%clk 0:02:33.4]} 8. Nc3 {[%clk
0:00:59.3]} 8... d6 {[%clk 0:02:32]} 9. d3 {[%clk 0:00:59.5]} 9... Nf6 {[%clk
0:02:32]} 10. Kh1 {[%clk 0:00:57.5]} 10... O-O {[%clk 0:02:32]} 11. Qe1 {[%clk
0:00:58]} 11... b5 {[%clk 0:02:30.9]} 12. Qh4 {[%clk 0:00:58.1]} 12... Bb7
{[%clk 0:02:30.2]} 13. f5 {[%clk 0:00:58.4]} 13... b4 {[%clk 0:02:29.3]} 14. Ne2
{[%clk 0:00:58.4]} 14... c4 {[%clk 0:02:22.6]} 15. Bh6 {[%clk 0:00:57.8]} 15...
cxd3 {[%clk 0:02:19.2]} 16. cxd3 {[%clk 0:00:58.7]} 16... Rc8 {[%clk 0:02:15.3]}
17. Ng5 {[%clk 0:00:58.1]} 17... Rc2 {[%clk 0:02:06.8]} 18. fxg6 {[%clk
0:00:54.7]} 18... Rxe2 {[%clk 0:01:31.2]} 19. Bxg7 {[%clk 0:00:48]} 19... Kxg7
{[%clk 0:01:21.4]} 20. Rxf6 {[%clk 0:00:46.5]} 20... hxg6 {[%clk 0:01:09.1]} 21.
Raf1 {[%clk 0:00:29.7]} 21... Rh8 {[%clk 0:00:56.7]} 22. Rxf7+ {[%clk
0:00:26.8]} 22... Kg8 {[%clk 0:00:57]} 23. Rf8+ {[%clk 0:00:21.1]} 23... Qxf8
{[%clk 0:00:56.9]} 24. Rxf8+ {[%clk 0:00:21.3]} 1-0

[Event "Late-Titled-Tuesday-Blitz-June-04-2024"]
[Site "Chess.com"]
[Date "2024.06.04"]
[Round "5"]
[White "MaiqMaster"]
[Black "Harry_Rakkel"]
[Result "1-0"]
[WhiteElo "2454"]
[BlackElo "2688"]
[TimeControl "180+1"]
[EndTime "14:53:49 PDT"]
[Termination "MaiqMaster won on time"]

1. e4 {[%clk 0:03:00.9]} 1... c5 {[%clk 0:02:58.8]} 2. Nc3 {[%clk 0:03:00.5]}
2... Nc6 {[%clk 0:02:56.7]} 3. Bb5 {[%clk 0:02:58.8]} 3... Nd4 {[%clk
0:02:54.9]} 4. Nf3 {[%clk 0:02:57.9]} 4... g6 {[%clk 0:02:53.3]} 5. Bc4 {[%clk
0:02:56.5]} 5... Bg7 {[%clk 0:02:46.8]} 6. Nxd4 {[%clk 0:02:56.6]} 6... cxd4
{[%clk 0:02:38.7]} 7. Qf3 {[%clk 0:02:56.3]} 7... Nh6 {[%clk 0:02:06]} 8. d3
{[%clk 0:02:49.2]} 8... O-O {[%clk 0:01:56.5]} 9. Ne2 {[%clk 0:02:37.8]} 9... d5
{[%clk 0:01:35]} 10. Bxd5 {[%clk 0:02:31.8]} 10... Bg4 {[%clk 0:01:33.7]} 11.
Qg3 {[%clk 0:02:28.5]} 11... Bxe2 {[%clk 0:01:29.2]} 12. Kxe2 {[%clk 0:02:29.4]}
12... Rc8 {[%clk 0:01:22.5]} 13. Bb3 {[%clk 0:02:29.3]} 13... Kh8 {[%clk
0:01:18.2]} 14. Qh4 {[%clk 0:02:17.9]} 14... Ng8 {[%clk 0:01:16.1]} 15. Re1
{[%clk 0:02:16.5]} 15... f5 {[%clk 0:00:47.3]} 16. Kf1 {[%clk 0:02:16.1]} 16...
fxe4 {[%clk 0:00:45.2]} 17. Qxe4 {[%clk 0:02:13]} 17... Nf6 {[%clk 0:00:40.7]}
18. Qxe7 {[%clk 0:02:10.7]} 18... Qa5 {[%clk 0:00:39.6]} 19. Bf4 {[%clk
0:01:41.7]} 19... Ng4 {[%clk 0:00:32.2]} 20. Bg3 {[%clk 0:01:32.6]} 20... Qf5
{[%clk 0:00:07.9]} 21. Kg1 {[%clk 0:01:28.7]} 21... h5 {[%clk 0:00:04.7]} 22. f3
{[%clk 0:01:26.6]} 22... Ne3 {[%clk 0:00:04.1]} 23. Qxb7 {[%clk 0:01:14.3]}
23... Rce8 {[%clk 0:00:01.8]} 24. Ba4 {[%clk 0:00:59.1]} 1-0

[Event "Late-Titled-Tuesday-Blitz-June-04-2024"]
[Site "Chess.com"]
[Date "2024.06.04"]
[Round "5"]
[White "HeinichessPY"]
[Black "jlf287"]
[Result "0-1"]
[WhiteElo "2275"]
[BlackElo "2514"]
[TimeControl "180+1"]
[EndTime "14:54:03 PDT"]
[Termination "jlf287 won by checkmate"]

1. e4 {[%clk 0:03:00.9]} 1... c6 {[%clk 0:02:57.5]} 2. d4 {[%clk 0:02:53.5]}
2... d5 {[%clk 0:02:57]} 3. exd5 {[%clk 0:02:53.1]} 3... cxd5 {[%clk 0:02:57.1]}
4. Bd3 {[%clk 0:02:52.9]} 4... Nc6 {[%clk 0:02:57]} 5. c3 {[%clk 0:02:52.7]}
5... Nf6 {[%clk 0:02:57.1]} 6. Bf4 {[%clk 0:02:52.4]} 6... Bg4 {[%clk
0:02:57.2]} 7. Qb3 {[%clk 0:02:48.1]} 7... Na5 {[%clk 0:02:44.8]} 8. Qa4+ {[%clk
0:01:05.1]} 8... Nc6 {[%clk 0:02:43.6]} 9. Bb5 {[%clk 0:01:01.5]} 9... Bd7
{[%clk 0:02:42.3]} 10. Nf3 {[%clk 0:00:59.7]} 10... e6 {[%clk 0:02:41.8]} 11.
Qc2 {[%clk 0:00:52.8]} 11... Rc8 {[%clk 0:02:40.7]} 12. Qe2 {[%clk 0:00:51.7]}
12... Be7 {[%clk 0:02:38]} 13. Bd3 {[%clk 0:00:52.1]} 13... O-O {[%clk 0:02:33]}
14. O-O {[%clk 0:00:51.7]} 14... a6 {[%clk 0:02:32.2]} 15. Nbd2 {[%clk 0:00:52]}
15... b5 {[%clk 0:02:32.1]} 16. Ne5 {[%clk 0:00:52.3]} 16... Be8 {[%clk
0:02:28.3]} 17. g4 {[%clk 0:00:48.4]} 17... Nxe5 {[%clk 0:02:28]} 18. Bxe5
{[%clk 0:00:47.9]} 18... Nd7 {[%clk 0:02:21.7]} 19. Bg3 {[%clk 0:00:46.9]} 19...
Nb6 {[%clk 0:02:16.9]} 20. Rac1 {[%clk 0:00:42.6]} 20... Nc4 {[%clk 0:02:16.4]}
21. Nf3 {[%clk 0:00:35.8]} 21... Bd6 {[%clk 0:02:06.1]} 22. Bxd6 {[%clk
0:00:34]} 22... Qxd6 {[%clk 0:02:05.1]} 23. b3 {[%clk 0:00:33.8]} 23... Nb6
{[%clk 0:02:03.5]} 24. Bb1 {[%clk 0:00:33.5]} 24... a5 {[%clk 0:01:49.3]} 25.
Ne5 {[%clk 0:00:33.6]} 25... Nd7 {[%clk 0:01:44.6]} 26. f4 {[%clk 0:00:33.1]}
26... Nxe5 {[%clk 0:01:39.2]} 27. fxe5 {[%clk 0:00:33]} 27... Qb6 {[%clk
0:01:32.3]} 28. Qd3 {[%clk 0:00:27]} 28... g6 {[%clk 0:01:31.1]} 29. h4 {[%clk
0:00:27.6]} 29... b4 {[%clk 0:01:28.8]} 30. h5 {[%clk 0:00:24.1]} 30... bxc3
{[%clk 0:01:19.5]} 31. h6 {[%clk 0:00:23.7]} 31... Bb5 {[%clk 0:01:08.5]} 32.
Qf3 {[%clk 0:00:21.2]} 32... Qxd4+ {[%clk 0:01:08.4]} 33. Kh2 {[%clk 0:00:18.2]}
33... Qxe5+ {[%clk 0:01:06.6]} 34. Kh3 {[%clk 0:00:17.1]} 34... Bxf1+ {[%clk
0:01:03.6]} 35. Rxf1 {[%clk 0:00:18]} 35... c2 {[%clk 0:01:02.3]} 36. Bxc2
{[%clk 0:00:17.3]} 36... Rxc2 {[%clk 0:01:01.7]} 37. Re1 {[%clk 0:00:18.2]}
37... Rh2# {[%clk 0:01:00.9]} 0-1

[Event "Late-Titled-Tuesday-Blitz-June-04-2024"]
[Site "Chess.com"]
[Date "2024.06.04"]
[Round "5"]
[White "CrushingKings"]
[Black "JoakimVonAnd"]
[Result "0-1"]
[WhiteElo "2614"]
[BlackElo "2784"]
[TimeControl "180+1"]
[EndTime "14:54:08 PDT"]
[Termination "JoakimVonAnd won by resignation"]

1. Nf3 {[%clk 0:03:00.9]} 1... d5 {[%clk 0:02:59.9]} 2. g3 {[%clk 0:03:01.2]}
2... Nf6 {[%clk 0:02:57.3]} 3. Bg2 {[%clk 0:03:00.8]} 3... c6 {[%clk 0:02:57.4]}
4. O-O {[%clk 0:03:01]} 4... Bf5 {[%clk 0:02:56.6]} 5. Nh4 {[%clk 0:03:01.3]}
5... Be4 {[%clk 0:02:56.2]} 6. f3 {[%clk 0:03:01.4]} 6... Bg6 {[%clk 0:02:56.7]}
7. b3 {[%clk 0:03:01.1]} 7... e6 {[%clk 0:02:55.6]} 8. Bb2 {[%clk 0:03:01.4]}
8... Nbd7 {[%clk 0:02:55.4]} 9. Nxg6 {[%clk 0:03:01.9]} 9... hxg6 {[%clk
0:02:56.1]} 10. d3 {[%clk 0:03:01.7]} 10... Bc5+ {[%clk 0:02:55.1]} 11. d4
{[%clk 0:03:01.4]} 11... Bb6 {[%clk 0:02:52]} 12. Nd2 {[%clk 0:02:57.7]} 12...
O-O {[%clk 0:02:49.5]} 13. Kh1 {[%clk 0:02:56.8]} 13... c5 {[%clk 0:02:44.1]}
14. dxc5 {[%clk 0:02:56.7]} 14... Nxc5 {[%clk 0:02:42.1]} 15. c4 {[%clk
0:02:57]} 15... Rc8 {[%clk 0:02:36.6]} 16. Rc1 {[%clk 0:02:52.4]} 16... Qe7
{[%clk 0:02:28.9]} 17. b4 {[%clk 0:02:51.2]} 17... Ncd7 {[%clk 0:02:18.9]} 18.
c5 {[%clk 0:02:51.5]} 18... Bc7 {[%clk 0:02:19.1]} 19. e4 {[%clk 0:02:52.2]}
19... Rfd8 {[%clk 0:02:16.7]} 20. Qb3 {[%clk 0:02:51.6]} 20... dxe4 {[%clk
0:02:13.7]} 21. Nxe4 {[%clk 0:02:29.8]} 21... Nxe4 {[%clk 0:02:07.9]} 22. fxe4
{[%clk 0:02:30]} 22... Be5 {[%clk 0:02:03]} 23. Rc2 {[%clk 0:01:28.7]} 23...
Bxb2 {[%clk 0:01:52.8]} 24. Qxb2 {[%clk 0:01:28.8]} 24... Qg5 {[%clk 0:01:13]}
25. e5 {[%clk 0:01:18.9]} 25... b6 {[%clk 0:00:56.4]} 26. c6 {[%clk 0:00:34.9]}
26... Nxe5 {[%clk 0:00:55.4]} 27. c7 {[%clk 0:00:35.1]} 27... Rd7 {[%clk
0:00:52.4]} 28. Rfc1 {[%clk 0:00:34.1]} 28... Nd3 {[%clk 0:00:48.7]} 29. Bb7
{[%clk 0:00:30.8]} 29... Rcxc7 {[%clk 0:00:30.5]} 30. Rxc7 {[%clk 0:00:30.3]}
30... Rxc7 {[%clk 0:00:29.3]} 0-1

[Event "Late-Titled-Tuesday-Blitz-June-04-2024"]
[Site "Chess.com"]
[Date "2024.06.04"]
[Round "5"]
[White "IlanSchnaider"]
[Black "Engima32"]
[Result "1-0"]
[WhiteElo "2774"]
[BlackElo "2475"]
[TimeControl "180+1"]
[EndTime "14:54:09 PDT"]
[Termination "IlanSchnaider won by checkmate"]

1. Nf3 {[%clk 0:02:59.7]} 1... Nf6 {[%clk 0:02:56.1]} 2. b3 {[%clk 0:02:59.7]}
2... a5 {[%clk 0:02:50.5]} 3. a4 {[%clk 0:02:56]} 3... g6 {[%clk 0:02:46.5]} 4.
Bb2 {[%clk 0:02:56.2]} 4... Bg7 {[%clk 0:02:47.1]} 5. h4 {[%clk 0:02:54.6]} 5...
b6 {[%clk 0:02:44.9]} 6. g3 {[%clk 0:02:53.2]} 6... Bb7 {[%clk 0:02:44.6]} 7.
Bg2 {[%clk 0:02:53.6]} 7... d6 {[%clk 0:02:43]} 8. d3 {[%clk 0:02:53.2]} 8...
Nbd7 {[%clk 0:02:43]} 9. Nbd2 {[%clk 0:02:53.6]} 9... O-O {[%clk 0:02:42.9]} 10.
e4 {[%clk 0:02:49.1]} 10... e5 {[%clk 0:02:39.7]} 11. Qe2 {[%clk 0:02:48.9]}
11... Qe7 {[%clk 0:02:37.1]} 12. Nc4 {[%clk 0:02:46.1]} 12... c6 {[%clk
0:02:35.5]} 13. Ne3 {[%clk 0:02:45.2]} 13... d5 {[%clk 0:02:31.6]} 14. h5 {[%clk
0:02:43]} 14... d4 {[%clk 0:02:30.8]} 15. h6 {[%clk 0:02:18.7]} 15... Bh8 {[%clk
0:02:29.1]} 16. Nc4 {[%clk 0:02:17.2]} 16... b5 {[%clk 0:02:06.3]} 17. Ncd2
{[%clk 0:02:14.1]} 17... Ba6 {[%clk 0:01:59.9]} 18. axb5 {[%clk 0:02:10.8]}
18... Bxb5 {[%clk 0:01:58]} 19. Ba3 {[%clk 0:02:07.7]} 19... c5 {[%clk
0:01:55.1]} 20. O-O {[%clk 0:02:07.8]} 20... a4 {[%clk 0:01:55.2]} 21. bxa4
{[%clk 0:02:07.1]} 21... Rxa4 {[%clk 0:01:55.4]} 22. Nb3 {[%clk 0:02:07.3]}
22... Rfa8 {[%clk 0:01:52.9]} 23. Bb2 {[%clk 0:02:07]} 23... c4 {[%clk
0:01:49.8]} 24. dxc4 {[%clk 0:01:50.3]} 24... Bxc4 {[%clk 0:01:48.9]} 25. Qxc4
{[%clk 0:01:50.4]} 25... Rxc4 {[%clk 0:01:42.7]} 26. Rxa8+ {[%clk 0:01:50.4]}
26... Ne8 {[%clk 0:01:05.5]} 27. Ba3 {[%clk 0:01:50.4]} 27... Qe6 {[%clk
0:00:57.4]} 28. Ng5 {[%clk 0:01:49.8]} 28... Nb6 {[%clk 0:00:46.8]} 29. Nxe6
{[%clk 0:01:41.3]} 29... Nxa8 {[%clk 0:00:45.9]} 30. Nec5 {[%clk 0:01:41.2]}
30... Rxc2 {[%clk 0:00:44.9]} 31. Rc1 {[%clk 0:01:40]} 31... Rxc1+ {[%clk
0:00:44.7]} 32. Nxc1 {[%clk 0:01:39.8]} 32... Nb6 {[%clk 0:00:44.9]} 33. N1d3
{[%clk 0:01:39.7]} 33... f5 {[%clk 0:00:42]} 34. Bh3 {[%clk 0:01:30.7]} 34...
Nc4 {[%clk 0:00:28.4]} 35. Bb4 {[%clk 0:01:26.6]} 35... Ned6 {[%clk 0:00:25.7]}
36. f3 {[%clk 0:01:14.1]} 36... Bf6 {[%clk 0:00:17.8]} 37. Nd7 {[%clk
0:01:13.1]} 37... Kf7 {[%clk 0:00:13.9]} 38. Bxd6 {[%clk 0:01:09.4]} 38... Nxd6
{[%clk 0:00:13.9]} 39. N7xe5+ {[%clk 0:01:10.1]} 39... Ke6 {[%clk 0:00:13.6]}
40. Nc5+ {[%clk 0:01:08.3]} 40... Kxe5 {[%clk 0:00:12.5]} 41. f4# {[%clk
0:01:08.8]} 1-0

[Event "Late-Titled-Tuesday-Blitz-June-04-2024"]
[Site "Chess.com"]
[Date "2024.06.04"]
[Round "5"]
[White "Viktor_Poddubnyi"]
[Black "albayo"]
[Result "0-1"]
[WhiteElo "2363"]
[BlackElo "2340"]
[TimeControl "180+1"]
[EndTime "14:54:11 PDT"]
[Termination "albayo won on time"]

1. e4 {[%clk 0:03:00]} 1... d5 {[%clk 0:02:58.9]} 2. exd5 {[%clk 0:02:59.7]}
2... Qxd5 {[%clk 0:02:59.1]} 3. Nc3 {[%clk 0:03:00.1]} 3... Qd6 {[%clk
0:02:59.6]} 4. d4 {[%clk 0:02:57.8]} 4... Nf6 {[%clk 0:02:59.3]} 5. Nf3 {[%clk
0:02:57.3]} 5... c6 {[%clk 0:02:59.7]} 6. Bg5 {[%clk 0:02:46.6]} 6... Bg4 {[%clk
0:02:50.7]} 7. h3 {[%clk 0:02:41]} 7... Bh5 {[%clk 0:02:50.2]} 8. g4 {[%clk
0:02:37]} 8... Bg6 {[%clk 0:02:49.8]} 9. Qd2 {[%clk 0:02:29.4]} 9... e6 {[%clk
0:02:49.6]} 10. Ne5 {[%clk 0:02:21.8]} 10... Be7 {[%clk 0:02:47.6]} 11. Nxg6
{[%clk 0:02:00.3]} 11... hxg6 {[%clk 0:02:48.5]} 12. Bg2 {[%clk 0:02:00.1]}
12... Nbd7 {[%clk 0:02:45.5]} 13. O-O-O {[%clk 0:01:59.1]} 13... Nb6 {[%clk
0:02:44.3]} 14. Bf4 {[%clk 0:01:57.4]} 14... Qd7 {[%clk 0:02:43]} 15. Ne4 {[%clk
0:01:32.4]} 15... Nfd5 {[%clk 0:02:40.6]} 16. Bg3 {[%clk 0:01:26.6]} 16... O-O-O
{[%clk 0:02:38.1]} 17. Kb1 {[%clk 0:01:23.7]} 17... Nf6 {[%clk 0:02:19.3]} 18.
Qe2 {[%clk 0:01:04.5]} 18... Nxe4 {[%clk 0:02:18.5]} 19. Qxe4 {[%clk 0:01:02.8]}
19... Qd5 {[%clk 0:02:16.9]} 20. h4 {[%clk 0:00:55.1]} 20... Qxe4 {[%clk
0:02:17.3]} 21. Bxe4 {[%clk 0:00:55]} 21... Bf6 {[%clk 0:02:17.3]} 22. c3 {[%clk
0:00:54.1]} 22... Nd5 {[%clk 0:02:17.2]} 23. h5 {[%clk 0:00:53.1]} 23... gxh5
{[%clk 0:02:16.3]} 24. gxh5 {[%clk 0:00:54]} 24... Be7 {[%clk 0:02:12.1]} 25.
Rdg1 {[%clk 0:00:49.9]} 25... Nf6 {[%clk 0:02:09.1]} 26. Bf3 {[%clk 0:00:48.7]}
26... Rh7 {[%clk 0:02:08.9]} 27. Be5 {[%clk 0:00:28.7]} 27... Rdh8 {[%clk
0:02:04.9]} 28. Bxf6 {[%clk 0:00:28.3]} 28... Bxf6 {[%clk 0:02:05.8]} 29. Kc2
{[%clk 0:00:26]} 29... Kc7 {[%clk 0:02:05.9]} 30. Kd3 {[%clk 0:00:25.2]} 30...
Kd6 {[%clk 0:02:06.2]} 31. Ke2 {[%clk 0:00:24.4]} 31... b5 {[%clk 0:02:05.2]}
32. Rg3 {[%clk 0:00:15.4]} 32... b4 {[%clk 0:02:05.2]} 33. Rc1 {[%clk
0:00:12.3]} 33... bxc3 {[%clk 0:02:04.5]} 34. bxc3 {[%clk 0:00:13.2]} 34... Rb8
{[%clk 0:02:04.5]} 35. Rc2 {[%clk 0:00:12.8]} 35... Rb1 {[%clk 0:02:02.3]} 36.
Rh3 {[%clk 0:00:12.2]} 36... Rh6 {[%clk 0:02:01.7]} 37. Rh2 {[%clk 0:00:11]}
37... a5 {[%clk 0:01:59.7]} 38. Rg2 {[%clk 0:00:11]} 38... a4 {[%clk 0:01:59.9]}
39. Kd2 {[%clk 0:00:10.1]} 39... a3 {[%clk 0:02:00.1]} 40. Rc1 {[%clk
0:00:09.6]} 40... Rb2+ {[%clk 0:02:00.3]} 41. Rc2 {[%clk 0:00:10.1]} 41... c5
{[%clk 0:01:57.4]} 42. Rxb2 {[%clk 0:00:08.6]} 42... axb2 {[%clk 0:01:57]} 43.
dxc5+ {[%clk 0:00:08.5]} 43... Kxc5 {[%clk 0:01:57.2]} 44. Kc2 {[%clk
0:00:08.5]} 44... Bxc3 {[%clk 0:01:57.1]} 45. Rg1 {[%clk 0:00:06]} 45... Bf6
{[%clk 0:01:54.9]} 46. Rd1 {[%clk 0:00:05.9]} 46... Rh8 {[%clk 0:01:54.5]} 47.
Rd7 {[%clk 0:00:04.6]} 47... Rc8 {[%clk 0:01:50]} 0-1

[Event "Late-Titled-Tuesday-Blitz-June-04-2024"]
[Site "Chess.com"]
[Date "2024.06.04"]
[Round "5"]
[White "1g60-1"]
[Black "margarita_2703"]
[Result "1-0"]
[WhiteElo "2452"]
[BlackElo "2274"]
[TimeControl "180+1"]
[EndTime "14:54:13 PDT"]
[Termination "1g60-1 won by resignation"]

1. e4 {[%clk 0:03:00.9]} 1... e6 {[%clk 0:01:53.5]} 2. d4 {[%clk 0:02:58.6]}
2... d5 {[%clk 0:01:18]} 3. e5 {[%clk 0:02:58]} 3... c5 {[%clk 0:01:15.1]} 4.
Nf3 {[%clk 0:02:57]} 4... Qb6 {[%clk 0:01:15.7]} 5. Bd3 {[%clk 0:02:54.2]} 5...
Nc6 {[%clk 0:01:12.5]} 6. c3 {[%clk 0:02:51.5]} 6... Bd7 {[%clk 0:01:11.4]} 7.
O-O {[%clk 0:02:51.5]} 7... cxd4 {[%clk 0:01:11.2]} 8. a3 {[%clk 0:02:44.4]}
8... Nh6 {[%clk 0:01:09.6]} 9. b4 {[%clk 0:02:40.1]} 9... Nf5 {[%clk 0:01:03.3]}
10. b5 {[%clk 0:02:34.3]} 10... Na5 {[%clk 0:01:00.3]} 11. Bxf5 {[%clk
0:02:32.4]} 11... exf5 {[%clk 0:00:59.9]} 12. Nxd4 {[%clk 0:02:33.1]} 12... g6
{[%clk 0:00:58.7]} 13. a4 {[%clk 0:02:30.2]} 13... Nc4 {[%clk 0:00:54.5]} 14.
Re1 {[%clk 0:02:27.5]} 14... Be6 {[%clk 0:00:54.2]} 15. Na3 {[%clk 0:02:24.5]}
15... Rc8 {[%clk 0:00:53.5]} 16. Nxc4 {[%clk 0:02:24.5]} 16... Rxc4 {[%clk
0:00:54.4]} 17. Bg5 {[%clk 0:02:16.8]} 17... Bg7 {[%clk 0:00:52.3]} 18. Bf6
{[%clk 0:02:16.8]} 18... O-O {[%clk 0:00:23.9]} 19. Qd2 {[%clk 0:02:12.3]} 19...
Rfc8 {[%clk 0:00:18]} 20. a5 {[%clk 0:01:57.4]} 20... Qc5 {[%clk 0:00:17.6]} 21.
Bxg7 {[%clk 0:01:51.8]} 21... Kxg7 {[%clk 0:00:17]} 22. Qg5 {[%clk 0:01:52]}
22... Rxc3 {[%clk 0:00:15.8]} 23. Qf6+ {[%clk 0:01:51.8]} 23... Kg8 {[%clk
0:00:15.2]} 24. Nxe6 {[%clk 0:01:52.2]} 24... fxe6 {[%clk 0:00:16.1]} 25. Qxe6+
{[%clk 0:01:52.6]} 25... Kg7 {[%clk 0:00:16.4]} 26. Qf6+ {[%clk 0:01:52.9]}
26... Kh6 {[%clk 0:00:16.7]} 27. h4 {[%clk 0:01:47.7]} 27... Rf8 {[%clk
0:00:14.9]} 28. Qg5+ {[%clk 0:01:46.7]} 28... Kg7 {[%clk 0:00:14.9]} 29. h5
{[%clk 0:01:44.6]} 29... Rc2 {[%clk 0:00:14.8]} 30. h6+ {[%clk 0:01:44.5]} 30...
Kg8 {[%clk 0:00:14.5]} 31. Qf4 {[%clk 0:01:39.8]} 31... Rc4 {[%clk 0:00:14]} 32.
Qg3 {[%clk 0:01:35]} 32... Re4 {[%clk 0:00:14.2]} 33. e6 {[%clk 0:01:29.1]}
33... Qe7 {[%clk 0:00:09.7]} 34. b6 {[%clk 0:01:20.8]} 34... axb6 {[%clk
0:00:05.8]} 35. axb6 {[%clk 0:01:19.8]} 35... Rxe6 {[%clk 0:00:06.2]} 36. Qc3
{[%clk 0:01:17]} 36... Qf6 {[%clk 0:00:04]} 37. Qc7 {[%clk 0:01:12.6]} 37... Qf7
{[%clk 0:00:02.4]} 38. Rxe6 {[%clk 0:01:05.5]} 1-0

[Event "Late-Titled-Tuesday-Blitz-June-04-2024"]
[Site "Chess.com"]
[Date "2024.06.04"]
[Round "5"]
[White "manitodeplomo"]
[Black "Kirill_Klukin"]
[Result "0-1"]
[WhiteElo "2619"]
[BlackElo "2826"]
[TimeControl "180+1"]
[EndTime "14:54:17 PDT"]
[Termination "Kirill_Klukin won by resignation"]

1. d4 {[%clk 0:02:27.6]} 1... Nf6 {[%clk 0:02:59]} 2. c4 {[%clk 0:02:26.1]} 2...
Nc6 {[%clk 0:02:59.4]} 3. Nf3 {[%clk 0:02:22.7]} 3... e6 {[%clk 0:02:59.5]} 4.
g3 {[%clk 0:02:20.2]} 4... Bb4+ {[%clk 0:02:59.7]} 5. Bd2 {[%clk 0:02:20.2]}
5... Qe7 {[%clk 0:03:00.4]} 6. Nc3 {[%clk 0:02:12.3]} 6... Bxc3 {[%clk
0:03:00.2]} 7. Bxc3 {[%clk 0:02:11.9]} 7... Ne4 {[%clk 0:03:01.1]} 8. Rc1 {[%clk
0:02:11.1]} 8... Nxc3 {[%clk 0:03:01.7]} 9. Rxc3 {[%clk 0:02:11]} 9... O-O
{[%clk 0:03:02.6]} 10. d5 {[%clk 0:02:07.4]} 10... Nb8 {[%clk 0:02:56.8]} 11.
Bg2 {[%clk 0:02:02.2]} 11... d6 {[%clk 0:02:56.1]} 12. O-O {[%clk 0:02:00.8]}
12... e5 {[%clk 0:02:55]} 13. c5 {[%clk 0:01:48.6]} 13... Nd7 {[%clk 0:02:48.4]}
14. cxd6 {[%clk 0:01:47.3]} 14... cxd6 {[%clk 0:02:49.3]} 15. b4 {[%clk
0:01:33.6]} 15... a5 {[%clk 0:02:48.6]} 16. a3 {[%clk 0:01:33.4]} 16... axb4
{[%clk 0:02:49]} 17. axb4 {[%clk 0:01:34.3]} 17... Nb6 {[%clk 0:02:47]} 18. Qb3
{[%clk 0:01:33.1]} 18... Bf5 {[%clk 0:02:38.5]} 19. Nh4 {[%clk 0:01:24.3]} 19...
Bd7 {[%clk 0:02:33.3]} 20. Rc7 {[%clk 0:01:20.1]} 20... Rab8 {[%clk 0:02:23.6]}
21. Rfc1 {[%clk 0:01:14.8]} 21... Rfc8 {[%clk 0:02:15.5]} 22. Qe3 {[%clk
0:01:03.9]} 22... Rxc7 {[%clk 0:01:44.5]} 23. Rxc7 {[%clk 0:01:04.8]} 23... Nc8
{[%clk 0:01:45.1]} 24. Bh3 {[%clk 0:00:59.9]} 24... Bxh3 {[%clk 0:01:18.9]} 25.
Rxe7 {[%clk 0:00:58.8]} 25... Nxe7 {[%clk 0:01:19.8]} 26. f4 {[%clk 0:00:59]}
26... Nxd5 {[%clk 0:01:16.3]} 27. Qd2 {[%clk 0:00:52.6]} 27... Nf6 {[%clk
0:01:06]} 28. Nf3 {[%clk 0:00:24.3]} 28... Ra8 {[%clk 0:01:02.8]} 29. Ng5 {[%clk
0:00:21.6]} 29... Ra1+ {[%clk 0:00:41.8]} 30. Kf2 {[%clk 0:00:17.5]} 30... h6
{[%clk 0:00:42.4]} 31. Nxh3 {[%clk 0:00:16]} 31... Ne4+ {[%clk 0:00:42.2]} 0-1

[Event "Late-Titled-Tuesday-Blitz-June-04-2024"]
[Site "Chess.com"]
[Date "2024.06.04"]
[Round "5"]
[White "NajdorfPlayerc5"]
[Black "ReadySkate"]
[Result "0-1"]
[WhiteElo "2453"]
[BlackElo "2716"]
[TimeControl "180+1"]
[EndTime "14:54:20 PDT"]
[Termination "ReadySkate won by checkmate"]

1. e4 {[%clk 0:03:00.9]} 1... c5 {[%clk 0:02:58.7]} 2. Nf3 {[%clk 0:02:59.9]}
2... e6 {[%clk 0:02:59.3]} 3. d4 {[%clk 0:02:59]} 3... cxd4 {[%clk 0:03:00.2]}
4. Nxd4 {[%clk 0:02:59.2]} 4... Nf6 {[%clk 0:03:00.8]} 5. Bd3 {[%clk 0:02:53.1]}
5... Nc6 {[%clk 0:03:00.6]} 6. Nxc6 {[%clk 0:02:47.7]} 6... bxc6 {[%clk
0:03:01.5]} 7. c4 {[%clk 0:02:42.3]} 7... d5 {[%clk 0:02:58.1]} 8. Nc3 {[%clk
0:02:38.4]} 8... Be7 {[%clk 0:02:56.8]} 9. O-O {[%clk 0:02:37.6]} 9... O-O
{[%clk 0:02:56.5]} 10. Bf4 {[%clk 0:02:07.6]} 10... Qa5 {[%clk 0:02:50.2]} 11.
exd5 {[%clk 0:02:02.3]} 11... cxd5 {[%clk 0:02:48]} 12. cxd5 {[%clk 0:02:02.1]}
12... exd5 {[%clk 0:02:48.6]} 13. Be5 {[%clk 0:01:55.8]} 13... Be6 {[%clk
0:02:44.9]} 14. Bd4 {[%clk 0:01:54.3]} 14... Rab8 {[%clk 0:02:42.1]} 15. Qd2
{[%clk 0:01:53]} 15... Qb4 {[%clk 0:02:36]} 16. Bxa7 {[%clk 0:01:35.1]} 16...
Rb7 {[%clk 0:02:20.7]} 17. Bd4 {[%clk 0:01:30.8]} 17... Ne4 {[%clk 0:02:16.2]}
18. Bxe4 {[%clk 0:01:18.7]} 18... dxe4 {[%clk 0:02:12.3]} 19. Qe3 {[%clk
0:01:18.9]} 19... f5 {[%clk 0:02:10.4]} 20. Rfd1 {[%clk 0:01:07.3]} 20... Rd8
{[%clk 0:02:07.4]} 21. Be5 {[%clk 0:00:57.5]} 21... Rbd7 {[%clk 0:02:02.9]} 22.
Rxd7 {[%clk 0:00:51.7]} 22... Rxd7 {[%clk 0:02:03.8]} 23. Qg3 {[%clk 0:00:24.4]}
23... Bf8 {[%clk 0:02:02.2]} 24. h3 {[%clk 0:00:23.6]} 24... Rd3 {[%clk
0:01:54.1]} 25. Qf4 {[%clk 0:00:19.5]} 25... h6 {[%clk 0:01:43.7]} 26. h4 {[%clk
0:00:18.5]} 26... Bc5 {[%clk 0:01:33.2]} 27. Kh2 {[%clk 0:00:14.4]} 27... Be7
{[%clk 0:01:25.1]} 28. Rd1 {[%clk 0:00:11.5]} 28... g5 {[%clk 0:01:22.9]} 29.
Qc1 {[%clk 0:00:10.6]} 29... Qc5 {[%clk 0:01:11.2]} 30. Bb8 {[%clk 0:00:04.3]}
30... Qxf2 {[%clk 0:00:55.8]} 31. Rxd3 {[%clk 0:00:03.8]} 31... exd3 {[%clk
0:00:55]} 32. Qd1 {[%clk 0:00:03.9]} 32... Qxh4+ {[%clk 0:00:51.8]} 33. Kg1
{[%clk 0:00:03.4]} 33... Bc5+ {[%clk 0:00:52.4]} 34. Kf1 {[%clk 0:00:03.7]}
34... Qf2# {[%clk 0:00:52]} 0-1